[Event "Swedish Championship O65 2022"]
[Site "Uppsala"]
[Date "2022.07.02"]
[Round "1.1"]
[White "Larsson, Per-Olov"]
[Black "Bellon Lopez, Juan Manuel"]
[Result "0-1"]
[ECO "B22"]
[WhiteElo "1955"]
[BlackElo "2330"]
[Annotator "TA"]
[PlyCount "104"]
[EventDate "2022.07.01"]
[EventType "tourn"]
[EventCountry "SWE"]
[SourceTitle "playchess.com"]
[Source "ChessBase"]
[SourceQuality "1"]
[TimeControl "40/5400+30:1800+30"]

{[%evp 14,104,35,58,49,43,61,52,56,53,37,41,42,48,45,60,68,57,61,45,95,32,35,0,0,-30,-23,-84,-68,-90,-75,-76,-63,-76,-39,-39,-39,-39,-39,-54,-40,-54,-39,-45,-39,-59,-59,-62,-43,-62,-41,-74,-31,-74,-81,-106,-106,-102,-104,-68,-21,-90,-90,-108,-90,-128,-125,-161,-163,-173,-157,-232,-208,-550,-451,-446,-429,-419,-421,-478,-471,-414,-352,-343,-362,-342,-347,-553,-587,-694,-687,-601,-573]} 1. e4 {[%emt 0:00:06]} c5 {[%emt 0:00:10]} 2. c3 {[%emt 0:00:21]} b6 {[%emt 0:00:05]} 3. d4 {[%emt 0:00:39]} Bb7 {[%emt 0:00:08]} 4. Bd3 {[%emt 0:00:50]} Nf6 {[%emt 0:00:16]} 5. Nd2 {[%emt 0:00:57]} cxd4 {[%emt 0:00:29]} 6. cxd4 {[%emt 0:00:24]} Nc6 {[%emt 0:00:18]} 7. Ngf3 {[%emt 0:00:40]} Nb4 {[%emt 0:02:05]} 8. Bb1 {[%emt 0:06:07]} Ba6 {[%emt 0:00:06] B22: Sicilian: 2 c3.} 9. e5 {[%emt 0:06:41] [#]} Ng8 $146 {[%emt 0:01:38]} ({Predecessor:} 9... Nfd5 10. Ne4 Qc7 11. a3 Nc6 12. b4 e6 13. Bd2 Bc4 14. Qc2 b5 15. Ba2 a5 16. Bxc4 bxc4 {½-½ (47) Sedykh,M (2143)-Pitcher,J (2231) London 2017}) 10. Ne4 {[%emt 0:05:02] Neg5 is the strong threat.} e6 {[%emt 0:00:17] White is slightly better.} 11. a3 {[%emt 0:01:33]} Nd5 {[%emt 0:00:17]} 12. Bd3 {[%emt 0:00:47]} Bxd3 {[%emt 0:00:16]} 13. Qxd3 {[%emt 0:00:09]} f5 {[%emt 0:01:24]} 14. Nc3 {[%emt 0:03:08] Black must now prevent Nxd5.} Nxc3 {[%emt 0:02:17]} 15. bxc3 {[%emt 0:00:40]} Qc7 {[%emt 0:00:03]} 16. O-O {[%emt 0:01:48]} Rc8 {[%emt 0:00:10] [#]} (16... Ne7 $1 $14) 17. Bb2 {[%emt 0:01:12]} (17. d5 $1 $16) 17... Qc4 {[%emt 0:01:21]} 18. Qxc4 {[%emt 0:02:31]} Rxc4 {[%emt 0:00:06]} 19. Nd2 {[%emt 0:01:45]} Ra4 {[%emt 0:04:23]} 20. f4 {[%emt 0:09:47]} (20. c4 $11 {keeps the balance.}) 20... Ne7 $17 {[%emt 0:03:45]} 21. Rf3 {[%emt 0:02:46]} Nc6 {[%emt 0:06:01]} 22. Nb3 {[%emt 0:03:21]} Be7 {[%emt 0:02:48]} 23. Rc1 {[%emt 0:03:47]} O-O {[%emt 0:13:08]} 24. c4 {[%emt 0:06:36]} Na5 {[%emt 0:12:27]} ({Don't do} 24... Bxa3 25. Ra1 $16) 25. Nxa5 {[%emt 0:01:25]} Rxa5 {[%emt 0:00:04]} 26. Rfc3 {[%emt 0:04:16]} Rc8 {[%emt 0:00:05]} 27. Kf2 {[%emt 0:01:33]} Kf7 {[%emt 0:00:07]} 28. Kf3 {[%emt 0:00:52]} Ra4 {[%emt 0:02:02]} 29. Ke3 {[%emt 0:01:28]} g5 {[%emt 0:02:47]} 30. g3 {[%emt 0:00:49]} Rg8 {[%emt 0:00:44]} 31. Kf3 {[%emt 0:03:35]} h5 {[%emt 0:01:18][%cal Bh7h5,Bh5h4][%mdl 32]} 32. Rd1 {[%emt 0:06:53]} h4 {[%emt 0:01:57]} 33. Kf2 {[%emt 0:12:09]} h3 {[%emt 0:09:36] And now ...gxf4 would win.} 34. fxg5 {[%emt 0:02:51] [#]} Rc8 $1 {[%emt 0:05:54]} ({But not} 34... Rxg5 $6 35. c5 $11) (34... Bxg5 $6 35. Ke2 $11) 35. Rdc1 {[%emt 0:02:02]} Bxg5 {[%emt 0:00:06]} 36. R1c2 {[%emt 0:00:13]} Be7 {[%emt 0:07:56]} (36... b5 $15 {deserves consideration.} 37. cxb5 Rxc3 38. Bxc3 Rxa3) 37. Ke3 {[%emt 0:01:24]} (37. g4 $11) 37... d6 {[%emt 0:00:10] Black keeps a firm grip on the game.} 38. exd6 {[%emt 0:02:27]} Bxd6 {[%emt 0:00:06]} 39. Kd3 {[%emt 0:01:18]} e5 {[%emt 0:05:03] Black is more active.} 40. dxe5 {[%emt 0:04:20]} Bxe5 {[%emt 0:00:07]} 41. Rb3 {[%emt 0:30:43]} Bxb2 {[%emt 0:30:19]} 42. Rbxb2 {[%emt 0:00:00]} (42. Rcxb2 $17 Raxc4 43. Kd2) 42... Rxa3+ $19 {[%emt 0:00:00][%mdl 4096] Endgame KRR-KRR} 43. Kd4 $2 {[%emt 0:00:00]} (43. Rc3 Ra4 44. Kd4) 43... Kf6 {[%emt 0:00:00][%cal Rc8d8]} 44. Rb5 {[%emt 0:00:00]} Rd8+ {[%emt 0:00:00]} 45. Rd5 {[%emt 0:00:00]} Rxd5+ {[%emt 0:00:00]} 46. Kxd5 {[%emt 0:00:00] KR-KR} Ra5+ {[%emt 0:00:00]} 47. Kd4 {[%emt 0:00:00]} Ke6 {[%emt 0:00:00]} 48. Re2+ {[%emt 0:00:00]} Kd6 {[%emt 0:00:00]} 49. Rd2 {[%emt 0:00:00]} Ra1 {[%emt 0:00:00]} 50. Ke3+ {[%emt 0:00:00]} (50. Rf2 $142) 50... Kc5 {[%emt 0:00:00] Black is clearly winning.} 51. Rd5+ {[%emt 0:00:00]} Kxc4 {[%emt 0:00:00]} 52. Rxf5 {[%emt 0:00:00]} b5 {[%emt 0:00:00] Weighted Error Value: White=0.34/Black=0.11 (very precise)} 0-1

[Event "Swedish Championship O65 2022"]
[Site "Uppsala"]
[Date "2022.07.02"]
[Round "1.2"]
[White "Jansson, Borje"]
[Black "Ekelund, Kurt"]
[Result "0-1"]
[ECO "B30"]
[WhiteElo "2230"]
[BlackElo "1939"]
[Annotator "TA"]
[PlyCount "56"]
[EventDate "2022.07.01"]
[EventType "tourn"]
[EventCountry "SWE"]
[SourceTitle "playchess.com"]
[Source "ChessBase"]
[SourceQuality "1"]
[TimeControl "40/5400+30:1800+30"]

{[%evp 9,56,16,51,-2,21,0,-7,0,40,28,42,26,44,48,47,54,53,7,58,64,68,-18,-21,-10,-25,-16,30,27,173,151,143,9,11,10,13,11,15,15,14,13,13,17,52,4,12,4,8,-177,-154]} 1. e4 {[%emt 0:00:08]} c5 {[%emt 0:01:51]} 2. Nf3 {[%emt 0:00:29]} Nc6 {[%emt 0:00:35]} 3. Bb5 {[%emt 0:00:35]} e5 {[%emt 0:00:28]} 4. O-O {[%emt 0:01:22]} Bd6 {[%emt 0:00:21]} 5. Re1 {[%emt 0:02:53]} Nf6 {[%emt 0:03:49] [#]} 6. Bf1 $146 {[%emt 0:00:30] B30: Sicilian: 2...Nc6 3 Bb5, lines without ...g6.} (6. c3 $14) ({Predecessor:} 6. c3 a6 7. Bf1 Bc7 8. d4 cxd4 9. cxd4 d6 10. h3 h6 11. Nc3 O-O 12. Be3 {½-½ (37) Garcia Gimenez,S (2185)-Guerra Rivera,S (2289) Salobrena 2020}) 6... Be7 {[%emt 0:03:24]} 7. d3 {[%emt 0:02:17]} O-O {[%emt 0:08:19]} 8. Nbd2 {[%emt 0:01:56] The position is equal.} d5 {[%emt 0:13:08]} 9. exd5 {[%emt 0:01:49]} Qxd5 {[%emt 0:08:17]} 10. g3 {[%emt 0:03:03]} Bg4 {[%emt 0:05:29][%cal Oe5e4]} 11. Bg2 {[%emt 0:00:22]} Qd7 {[%emt 0:03:00]} 12. Nc4 {[%emt 0:10:11]} Bd6 {[%emt 0:21:22]} 13. c3 {[%emt 0:06:47]} (13. h3 $14 {is superior.} Be6 14. Nfxe5 (14. Ncxe5 Nxe5 15. Nxe5 Bxe5 $14) 14... Nxe5 15. Nxe5 Bxe5 16. Rxe5) 13... Bc7 {[%emt 0:00:53]} (13... Rae8 $11) 14. Bg5 $14 {[%emt 0:01:06]} Nd5 {[%emt 0:01:21]} 15. Ne3 {[%emt 0:05:18]} (15. Qb3 $1 $14) 15... Nxe3 $11 {[%emt 0:00:56]} 16. Bxe3 {[%emt 0:00:16]} b6 {[%emt 0:00:21]} 17. Qa4 {[%emt 0:03:00]} Rad8 {[%emt 0:06:58]} (17... Rac8 $142) 18. Nd2 {[%emt 0:07:57]} Na5 {[%emt 0:00:49]} (18... Ne7 $11 19. Qxa7 Nc8) 19. Qxd7 $18 {[%emt 0:01:07]} Bxd7 {[%emt 0:00:19]} 20. d4 {[%emt 0:05:46]} (20. b4 $16) 20... exd4 $11 {[%emt 0:01:11]} 21. cxd4 {[%emt 0:00:14]} cxd4 {[%emt 0:00:21]} 22. Bxd4 {[%emt 0:00:14]} Bc6 {[%emt 0:02:08]} 23. Bc3 {[%emt 0:02:12]} Bxg2 {[%emt 0:00:40]} 24. Kxg2 {[%emt 0:00:24]} Nc6 {[%emt 0:01:23]} 25. Rac1 {[%emt 0:00:18]} Be5 {[%emt 0:02:24]} 26. Nc4 {[%emt 0:03:14]} (26. Bxe5 $14 {deserves consideration.} Nxe5 27. Rxe5 Rxd2 28. Rc7) 26... Bxc3 {[%emt 0:00:18]} 27. Rxc3 {[%emt 0:00:23][%cal Oc4b6]} Nb4 {[%emt 0:02:18]} 28. Re7 $2 {[%emt 0:01:22] [#]} (28. a3 $11 {and White stays safe.} Nd5 29. Rc2) 28... Nd5 {[%emt 0:00:09] Black used his chance.  Weighted Error Value: White=0.44/Black=0.25 (precise)} 0-1

[Event "Swedish Championship O65 2022"]
[Site "Uppsala"]
[Date "2022.07.02"]
[Round "1.3"]
[White "Nylund, Seved"]
[Black "Bergstrom, Rolf"]
[Result "0-1"]
[ECO "C41"]
[WhiteElo "1909"]
[BlackElo "2202"]
[Annotator "RC"]
[PlyCount "84"]
[EventDate "2022.07.01"]
[EventType "tourn"]
[EventCountry "SWE"]
[SourceTitle "playchess.com"]
[Source "ChessBase"]
[SourceQuality "1"]
[TimeControl "40/5400+30:1800+30"]

1. e4 {[%emt 0:00:07]} d6 {[%emt 0:00:40]} 2. d4 {[%emt 0:00:26]} Nf6 {[%emt 0:00:43]} 3. Nc3 {[%emt 0:01:19]} Nbd7 {[%emt 0:00:54]} 4. Bg5 {[%emt 0:01:07]} e5 {[%emt 0:03:04]} 5. Nf3 {[%emt 0:01:58]} Be7 {[%emt 0:00:26]} 6. Qd2 {[%emt 0:01:45]} c6 {[%emt 0:02:25]} 7. Be2 {[%emt 0:06:15]} Qc7 {[%emt 0:08:44]} 8. O-O {[%emt 0:06:27]} b5 {[%emt 0:02:31]} 9. a3 {[%emt 0:01:34]} a6 {[%emt 0:00:40]} 10. Rfe1 {[%emt 0:09:58]} O-O {[%emt 0:01:31]} 11. Bf1 {[%emt 0:05:44]} Re8 {[%emt 0:00:28]} 12. Rad1 {[%emt 0:02:45]} Bf8 {[%emt 0:02:24]} 13. dxe5 {[%emt 0:05:53]} dxe5 {[%emt 0:00:14]} 14. h3 {[%emt 0:01:42]} h6 {[%emt 0:00:52]} 15. Bh4 {[%emt 0:01:47]} Nh5 {[%emt 0:04:11]} 16. g4 {[%emt 0:03:35]} Nf4 {[%emt 0:02:55]} 17. Bg3 {[%emt 0:02:57]} g5 {[%emt 0:02:07]} 18. h4 {[%emt 0:02:39]} Nc5 {[%emt 0:09:04]} 19. Nh2 {[%emt 0:04:35]} Nce6 {[%emt 0:03:58]} 20. h5 {[%emt 0:01:31]} Nd4 {[%emt 0:04:17]} 21. f3 {[%emt 0:05:52]} Be6 {[%emt 0:01:47]} 22. Bd3 {[%emt 0:02:56]} Rad8 {[%emt 0:03:18]} 23. Kh1 {[%emt 0:04:25]} Bc5 {[%emt 0:05:21]} 24. Bxf4 {[%emt 0:01:38]} gxf4 {[%emt 0:01:00]} 25. Qg2 {[%emt 0:00:15]} Be7 {[%emt 0:00:49]} 26. Ne2 {[%emt 0:02:18]} Nxe2 {[%emt 0:03:02]} 27. Rxe2 {[%emt 0:01:32]} Rd7 {[%emt 0:03:00]} 28. Red2 {[%emt 0:01:32]} Red8 {[%emt 0:05:17]} 29. Bf1 {[%emt 0:02:33]} Qa7 {[%emt 0:02:29]} 30. Rxd7 {[%emt 0:02:39]} Rxd7 {[%emt 0:01:27]} 31. Rxd7 {[%emt 0:00:04]} Qxd7 {[%emt 0:00:36]} 32. Bd3 {[%emt 0:00:58]} Qd4 {[%emt 0:01:18]} 33. b3 {[%emt 0:03:28]} Qa1+ {[%emt 0:01:23]} 34. Nf1 {[%emt 0:00:35]} Qxa3 {[%emt 0:00:15]} 35. Nd2 {[%emt 0:02:19]} Qa1+ {[%emt 0:00:34]} 36. Kh2 {[%emt 0:00:36]} Qd4 {[%emt 0:00:12]} 37. Qe2 {[%emt 0:01:13]} a5 {[%emt 0:00:58]} 38. c4 {[%emt 0:00:22]} Bc5 {[%emt 0:00:29]} 39. Qg2 {[%emt 0:01:50]} f6 {[%emt 0:02:55]} 40. Qf1 {[%emt 0:01:11]} Qe3 {[%emt 0:01:13]} 41. Nb1 {[%emt 0:30:51]} b4 {[%emt 0:30:31]} 42. Kh3 {[%emt 0:00:37]} Kf7 {[%emt 0:00:41]} 0-1

[Event "Swedish Championship O65 2022"]
[Site "Uppsala"]
[Date "2022.07.02"]
[Round "1.4"]
[White "Marttala, Thomas"]
[Black "Hartzell, Ove"]
[Result "1-0"]
[ECO "A37"]
[WhiteElo "2164"]
[BlackElo "1903"]
[Annotator "RC"]
[PlyCount "43"]
[EventDate "2022.07.01"]
[EventType "tourn"]
[EventCountry "SWE"]
[SourceTitle "playchess.com"]
[Source "ChessBase"]
[SourceQuality "1"]
[TimeControl "40/5400+30:1800+30"]

1. c4 {[%emt 0:00:39]} c5 {[%emt 0:01:04]} 2. g3 {[%emt 0:00:29]} g6 {[%emt 0:00:19]} 3. Nc3 {[%emt 0:00:54]} Bg7 {[%emt 0:00:54]} 4. Bg2 {[%emt 0:00:25]} Nc6 {[%emt 0:00:50]} 5. Nf3 {[%emt 0:01:07]} d6 {[%emt 0:01:02]} 6. O-O {[%emt 0:00:53]} e5 {[%emt 0:03:23]} 7. d3 {[%emt 0:02:09]} Nge7 {[%emt 0:00:07]} 8. Rb1 {[%emt 0:01:03]} O-O {[%emt 0:03:59]} 9. a3 {[%emt 0:00:39]} Rb8 {[%emt 0:07:04]} 10. b4 {[%emt 0:01:19]} h6 {[%emt 0:06:01]} 11. b5 {[%emt 0:28:37]} Nd4 {[%emt 0:06:19]} 12. Nd2 {[%emt 0:03:57]} Ne6 {[%emt 0:21:01]} 13. Nd5 {[%emt 0:09:02]} Nc7 {[%emt 0:07:28]} 14. Qb3 {[%emt 0:05:22]} b6 {[%emt 0:02:05]} 15. Bb2 {[%emt 0:02:00]} Nf5 {[%emt 0:03:30]} 16. e3 {[%emt 0:00:36]} Re8 {[%emt 0:05:46]} 17. a4 {[%emt 0:00:53]} Bd7 {[%emt 0:19:04]} 18. Bc3 {[%emt 0:04:31]} g5 {[%emt 0:04:33]} 19. Qb2 {[%emt 0:06:43]} h5 {[%emt 0:02:43]} 20. Rbe1 {[%emt 0:00:48]} g4 {[%emt 0:01:52]} 21. f4 {[%emt 0:03:34]} Nxd5 {[%emt 0:00:00]} 22. Bxd5 {[%emt 0:01:20]} 1-0

[Event "Swedish Championship O65 2022"]
[Site "Uppsala"]
[Date "2022.07.03"]
[Round "2.1"]
[White "Bellon Lopez, Juan Manuel"]
[Black "Franzen Hogberg, Thomas"]
[Result "1-0"]
[ECO "A81"]
[WhiteElo "2330"]
[BlackElo "1997"]
[Annotator "ChessBase"]
[PlyCount "77"]
[EventDate "2022.07.01"]
[EventType "tourn"]
[EventCountry "SWE"]
[SourceTitle "playchess.com"]
[Source "ChessBase"]
[SourceQuality "1"]
[TimeControl "40/5400+30:1800+30"]

1. d4 {[%emt 0:00:02]} f5 {[%emt 0:01:12]} 2. g3 {[%emt 0:01:12]} Nf6 {[%emt 0:00:09]} 3. Bg2 {[%emt 0:00:16]} g6 {[%emt 0:00:08]} 4. Nf3 {[%emt 0:00:18]} Bg7 {[%emt 0:00:06]} 5. O-O {[%emt 0:00:16]} O-O {[%emt 0:00:10]} 6. b3 {[%emt 0:00:22]} d6 {[%emt 0:07:13]} 7. Bb2 {[%emt 0:00:42]} Na6 {[%emt 0:04:44]} 8. Nbd2 {[%emt 0:01:54]} c6 {[%emt 0:02:41]} 9. Re1 {[%emt 0:02:30]} Ne4 {[%emt 0:11:10]} 10. e3 {[%emt 0:00:28]} Qc7 {[%emt 0:07:07]} 11. Rc1 {[%emt 0:19:50]} Nac5 {[%emt 0:07:24]} 12. Ba1 {[%emt 0:03:43]} Nxd2 {[%emt 0:07:15]} 13. Nxd2 {[%emt 0:00:08]} Nd7 {[%emt 0:00:14]} 14. a4 {[%emt 0:05:53]} e5 {[%emt 0:07:24]} 15. dxe5 {[%emt 0:05:19]} Nxe5 {[%emt 0:02:25]} 16. f4 {[%emt 0:05:37]} Ng4 {[%emt 0:02:36]} 17. Bxg7 {[%emt 0:07:29]} Qxg7 {[%emt 0:04:40]} 18. Bf3 {[%emt 0:01:26]} Nf6 {[%emt 0:01:30]} 19. Nc4 {[%emt 0:04:25]} d5 {[%emt 0:01:25]} 20. Ne5 {[%emt 0:00:04]} Nd7 {[%emt 0:03:50]} 21. Nxd7 {[%emt 0:05:56]} Bxd7 {[%emt 0:00:22]} 22. c4 {[%emt 0:02:44]} dxc4 {[%emt 0:04:40]} 23. Rxc4 {[%emt 0:00:46]} Rad8 {[%emt 0:01:09]} 24. Rd4 {[%emt 0:01:29]} Qe7 {[%emt 0:00:25]} 25. Re2 {[%emt 0:08:41]} Bc8 {[%emt 0:02:24]} 26. Kf2 {[%emt 0:00:40]} c5 {[%emt 0:05:15]} 27. Bd5+ {[%emt 0:00:37]} Kg7 {[%emt 0:00:06]} 28. Rd3 {[%emt 0:00:27]} b6 {[%emt 0:00:26]} 29. Red2 {[%emt 0:01:42]} Rfe8 {[%emt 0:02:08]} 30. Bc6 {[%emt 0:03:49]} Rxd3 {[%emt 0:00:31]} 31. Rxd3 {[%emt 0:00:03]} Rf8 {[%emt 0:00:16]} 32. Bd7 {[%emt 0:03:44]} Kh6 {[%emt 0:03:20]} 33. Bxc8 {[%emt 0:00:26]} Rxc8 {[%emt 0:00:05]} 34. Rd7 {[%emt 0:00:32]} Qf6 {[%emt 0:00:33]} 35. Qd2 {[%emt 0:03:25]} Qc6 {[%emt 0:04:04]} 36. g4 {[%emt 0:01:11]} fxg4 {[%emt 0:00:29]} 37. e4 {[%emt 0:01:37]} Qxe4 {[%emt 0:01:07]} 38. f5+ {[%emt 0:00:16]} g5 {[%emt 0:00:11]} 39. Qd6+ {[%emt 0:00:10]} 1-0

[Event "Swedish Championship O65 2022"]
[Site "Uppsala"]
[Date "2022.07.03"]
[Round "2.2"]
[White "Bergstrom, Rolf"]
[Black "Alquist, Erik"]
[Result "1-0"]
[ECO "B22"]
[WhiteElo "2202"]
[BlackElo "1968"]
[Annotator "RC"]
[PlyCount "95"]
[EventDate "2022.07.01"]
[EventType "tourn"]
[EventCountry "SWE"]
[SourceTitle "playchess.com"]
[Source "ChessBase"]
[SourceQuality "1"]
[TimeControl "40/5400+30:1800+30"]

1. e4 {[%emt 0:00:15]} c5 {[%emt 0:00:30]} 2. c3 {[%emt 0:00:41]} Nf6 {[%emt 0:01:11]} 3. e5 {[%emt 0:00:33]} Nd5 {[%emt 0:00:04]} 4. Nf3 {[%emt 0:01:20]} e6 {[%emt 0:01:00]} 5. d4 {[%emt 0:01:17]} cxd4 {[%emt 0:00:08]} 6. cxd4 {[%emt 0:00:08]} d6 {[%emt 0:00:23]} 7. Bc4 {[%emt 0:00:55]} Be7 {[%emt 0:00:20]} 8. O-O {[%emt 0:00:30]} O-O {[%emt 0:00:21]} 9. Qe2 {[%emt 0:00:26]} b6 {[%emt 0:00:59]} 10. Rd1 {[%emt 0:16:13]} Bb7 {[%emt 0:09:12]} 11. Bxd5 {[%emt 0:12:50]} Bxd5 {[%emt 0:03:29]} 12. Nc3 {[%emt 0:00:14]} Bxf3 {[%emt 0:11:26]} 13. Qxf3 {[%emt 0:00:18]} d5 {[%emt 0:00:14]} 14. Qg4 {[%emt 0:00:56]} Re8 {[%emt 0:23:21]} 15. Bh6 {[%emt 0:04:02]} g6 {[%emt 0:03:14]} 16. Rd3 {[%emt 0:14:52]} Nd7 {[%emt 0:02:45]} 17. Re1 {[%emt 0:01:45]} a6 {[%emt 0:01:17]} 18. Ne2 {[%emt 0:09:52]} Rc8 {[%emt 0:11:12]} 19. Nf4 {[%emt 0:00:17]} Bf8 {[%emt 0:02:11]} 20. Bxf8 {[%emt 0:05:06]} Rxf8 {[%emt 0:01:09]} 21. h4 {[%emt 0:01:43]} Kh8 {[%emt 0:02:41]} 22. h5 {[%emt 0:03:58]} g5 {[%emt 0:01:37]} 23. Nh3 {[%emt 0:02:03]} Rg8 {[%emt 0:01:52]} 24. Rc3 {[%emt 0:01:58]} Rxc3 {[%emt 0:00:40]} 25. bxc3 {[%emt 0:00:05]} b5 {[%emt 0:00:29]} 26. Re3 {[%emt 0:00:18]} h6 {[%emt 0:00:58]} 27. f4 {[%emt 0:00:43]} f5 {[%emt 0:04:42]} 28. exf6 {[%emt 0:02:01]} Nxf6 {[%emt 0:00:13]} 29. Qe2 {[%emt 0:00:34]} Ne4 {[%emt 0:01:44]} 30. fxg5 {[%emt 0:00:45]} hxg5 {[%emt 0:08:59]} 31. Nf2 {[%emt 0:00:34]} Nxf2 {[%emt 0:03:55]} 32. Qxf2 {[%emt 0:00:21]} Qe7 {[%emt 0:00:33]} 33. Qe2 {[%emt 0:02:55]} Re8 {[%emt 0:00:18]} 34. Re5 {[%emt 0:10:08]} Kg7 {[%emt 0:00:44]} 35. Qd3 {[%emt 0:02:23]} Qf6 {[%emt 0:00:26]} 36. Qe2 {[%emt 0:02:06]} Qe7 {[%emt 0:01:19]} 37. g3 {[%emt 0:02:00]} Kh6 {[%emt 0:00:49]} 38. Kg2 {[%emt 0:00:15]} Kg7 {[%emt 0:02:27]} 39. Kh3 {[%emt 0:00:29]} Qf6 {[%emt 0:00:17]} 40. Kg4 {[%emt 0:01:03]} Kf7 {[%emt 0:00:41]} 41. Rxg5 {[%emt 0:03:14]} Rc8 {[%emt 0:08:25]} 42. Qd3 {[%emt 0:13:17]} Ke7 {[%emt 0:02:17]} 43. Qh7+ {[%emt 0:04:15]} Kd6 {[%emt 0:00:34]} 44. Qg7 {[%emt 0:00:32]} Rf8 {[%emt 0:07:39]} 45. Qxf6 {[%emt 0:01:00]} Rxf6 {[%emt 0:00:03]} 46. Rg7 {[%emt 0:01:14]} Rf2 {[%emt 0:00:27]} 47. h6 {[%emt 0:00:34]} Rxa2 {[%emt 0:00:19]} 48. Rg5 {[%emt 0:00:51]} 1-0

[Event "Swedish Championship O65 2022"]
[Site "Uppsala"]
[Date "2022.07.03"]
[Round "2.3"]
[White "Westin, Ake"]
[Black "Marttala, Thomas"]
[Result "1/2-1/2"]
[ECO "B25"]
[WhiteElo "1994"]
[BlackElo "2164"]
[Annotator "RC"]
[PlyCount "82"]
[EventDate "2022.07.01"]
[EventType "tourn"]
[EventCountry "SWE"]
[SourceTitle "playchess.com"]
[Source "ChessBase"]
[SourceQuality "1"]
[TimeControl "40/5400+30:1800+30"]

1. e4 {[%emt 0:04:26]} c5 {[%emt 0:02:00]} 2. Nc3 {[%emt 0:01:17]} Nc6 {[%emt 0:01:34]} 3. f4 {[%emt 0:01:51]} g6 {[%emt 0:02:30]} 4. Nf3 {[%emt 0:03:35]} Bg7 {[%emt 0:03:01]} 5. g3 {[%emt 0:02:09]} d6 {[%emt 0:00:43]} 6. Bg2 {[%emt 0:00:29]} Nf6 {[%emt 0:06:03]} 7. O-O {[%emt 0:01:17]} O-O {[%emt 0:00:09]} 8. d3 {[%emt 0:01:18]} Rb8 {[%emt 0:07:10]} 9. h3 {[%emt 0:08:45]} Ne8 {[%emt 0:00:49]} 10. Ne2 {[%emt 0:02:22]} Nc7 {[%emt 0:06:31]} 11. c3 {[%emt 0:05:10]} f5 {[%emt 0:07:38]} 12. exf5 {[%emt 0:04:42]} gxf5 {[%emt 0:00:34]} 13. d4 {[%emt 0:00:45]} cxd4 {[%emt 0:12:13]} 14. cxd4 {[%emt 0:02:17]} e6 {[%emt 0:02:14]} 15. Nc3 {[%emt 0:00:52]} Ne7 {[%emt 0:00:31]} 16. Ne1 {[%emt 0:04:27]} Bd7 {[%emt 0:00:51]} 17. Nc2 {[%emt 0:01:11]} Bc6 {[%emt 0:03:23]} 18. Ne3 {[%emt 0:00:45]} Bxg2 {[%emt 0:03:20]} 19. Kxg2 {[%emt 0:00:24]} d5 {[%emt 0:02:58]} 20. Nc2 {[%emt 0:05:41]} Nc6 {[%emt 0:10:33]} 21. Be3 {[%emt 0:02:42]} Ne8 {[%emt 0:01:26]} 22. Bf2 {[%emt 0:01:00]} Nd6 {[%emt 0:02:02]} 23. Qe2 {[%emt 0:02:13]} Qd7 {[%emt 0:04:05]} 24. Rfe1 {[%emt 0:03:12]} Rbe8 {[%emt 0:01:54]} 25. Rad1 {[%emt 0:02:22]} Kh8 {[%emt 0:00:56]} 26. Kh2 {[%emt 0:01:24]} Qf7 {[%emt 0:04:16]} 27. Rg1 {[%emt 0:04:11]} Rg8 {[%emt 0:01:33]} 28. Ne1 {[%emt 0:01:16]} Ne4 {[%emt 0:01:42]} 29. Nf3 {[%emt 0:00:31]} Rc8 {[%emt 0:04:16]} 30. Be3 {[%emt 0:10:51]} Bf6 {[%emt 0:07:44]} 31. Ne5 {[%emt 0:05:22]} Bxe5 {[%emt 0:00:27]} 32. fxe5 {[%emt 0:01:39]} Ne7 {[%emt 0:00:39]} 33. Qd3 {[%emt 0:06:37]} Nxg3 {[%emt 0:00:40]} 34. Rxg3 {[%emt 0:01:08]} Rxg3 {[%emt 0:00:08]} 35. Kxg3 {[%emt 0:03:49]} f4+ {[%emt 0:00:04]} 36. Kh2 {[%emt 0:00:35]} fxe3 {[%emt 0:00:08]} 37. Qxe3 {[%emt 0:00:33]} Nf5 {[%emt 0:00:15]} 38. Qf4 {[%emt 0:02:11]} Rg8 {[%emt 0:00:24]} 39. Rg1 {[%emt 0:01:27]} Rxg1 {[%emt 0:00:15]} 40. Kxg1 {[%emt 0:00:09]} Qg6+ {[%emt 0:01:17]} 41. Kh2 {[%emt 0:31:01]} Kg7 {[%emt 0:30:38]} 1/2-1/2